fUST/lending_fUST_20250930
["ID","MTS","AMOUNT","RATE_DAILY","PERIOD"]
[388494401,1759212654740,-480.0,0.00021738,2]
[388494402,1759212654750,-480.0,0.00021738,2]
[388494403,1759212654759,-480.0,0.00021738,2]
[388494404,1759212654768,-480.0,0.00021738,2]
[388494405,1759212654778,-480.0,0.00021738,2]
[388494406,1759212654787,-480.0,0.00021738,2]
[388494407,1759212654796,-480.0,0.00021738,2]
[388494408,1759212654806,-480.0,0.00021738,2]
[388494409,1759212654815,-480.0,0.00021738,2]
[388494410,1759212654824,-480.0,0.00021738,2]
[388494411,1759212654833,-480.0,0.00021738,2]
[388494412,1759212654843,-480.0,0.00021738,2]
[388494413,1759212654852,-712.8,0.00021738,2]
[388494414,1759212654861,-480.0,0.00021738,2]
[388494415,1759212654871,-480.0,0.00021738,2]
[388494416,1759212654881,-480.0,0.00021738,2]
[388494417,1759212654892,-480.0,0.00021738,2]
[388494418,1759212654902,-480.0,0.00021738,2]
[388494419,1759212654913,-480.0,0.00021738,2]
[388494420,1759212654924,-480.0,0.00021739,2]
[388494421,1759212654934,-480.0,0.00021739,2]
[388494422,1759212654943,-1013.24015809,0.000218,2]
[388494423,1759212654952,-1500.0,0.0002181,2]
[388494424,1759212654963,-1500.0,0.0002181,2]
[388494425,1759212654972,-339.54448513,0.0002181,2]
[388494426,1759212657188,-0.53582321,0.0002181,2]
[388494427,1759212724085,-339.43481762,0.00019817,2]
[388494428,1759212726983,-252.39399934,0.00019817,2]
[388494429,1759212729710,-9.12118304,0.00019817,2]
[388494430,1759212729738,-300.0,0.00019818,2]
[388494431,1759212729762,-480.0,0.00019819,2]
[388494432,1759212729787,-106.71128,0.00019819,2]
[388494433,1759212732871,-215.67783306,0.00019819,2]
[388494434,1759212736092,-157.61088694,0.00019819,2]
[388494435,1759212736116,-2.38911306,0.00019819,2]
[388494436,1759212738836,-477.61088694,0.00019819,2]
[388494437,1759212738863,-2.38911306,0.00019819,2]
[388494438,1759212739916,10000.01,0.0001962,2]
[388494439,1759212739944,10000.01,0.0001962,2]
[388494440,1759212739969,10000.01,0.0001962,2]
[388494441,1759212739994,10000.01,0.0001962,2]
[388494442,1759212740019,10000.01,0.0001962,2]
[388494443,1759212740044,10000.01,0.0001962,2]
[388494444,1759212740074,10000.01,0.0001962,2]
[388494445,1759212740099,10000.01,0.0001962,2]
[388494446,1759212740123,10000.01,0.0001962,2]
[388494447,1759212740147,10000.01,0.0001962,2]
[388494448,1759212740525,-1368.71,0.0001962,2]
[388494449,1759212768082,-3625.92309679,0.0001962,2]
[388494450,1759212768131,-10000.01,0.0001962,2]
[388494451,1759212768287,-10000.01,0.0001962,2]
[388494452,1759212769223,-979.26509277,0.0001962,2]
[388494453,1759212770815,-10000.01,0.0001962,2]
[388494454,1759212770968,-10000.01,0.0001962,2]
[388494455,1759212777240,-10000.01,0.0001962,2]
[388494456,1759212777382,-10000.01,0.0001962,2]
[388494457,1759212777516,-10000.01,0.0001962,2]
[388494458,1759212777652,-10000.01,0.0001962,2]
[388494459,1759212777784,-10000.01,0.0001962,2]
[388494460,1759212777931,-10000.01,0.0001962,2]
[388494461,1759212787493,-300.0,0.00019619,2]
[388494462,1759212787532,-9400.01,0.0001962,2]
[388494463,1759212787865,-10000.01,0.0001962,2]
[388494464,1759212788046,-10000.01,0.0001962,2]
[388494465,1759212807280,-230.92384812,0.00019619,2]
[388494466,1759212807313,-500.0,0.00019619,2]
[388494467,1759212807345,-450.0,0.00019619,2]
[388494468,1759212807376,-500.0,0.00019619,2]
[388494469,1759212807407,-500.0,0.00019619,2]
[388494470,1759212807526,-5638.16230376,0.0001962,2]
[388494471,1759212807546,-10000.01,0.0001962,2]
[388494472,1759212809631,-10000.01,0.0001962,2]
[388494473,1759212811859,-480.0,0.00019619,2]
[388494474,1759212811902,-9040.01,0.0001962,2]
[388494475,1759212811967,-10000.01,0.0001962,2]
[388494476,1759212816263,-10000.01,0.0001962,2]
[388494477,1759212816374,-10000.01,0.0001962,2]
[388494478,1759212827314,-10000.01,0.0001962,2]
[388494479,1759212827438,-10000.01,0.0001962,2]
[388494480,1759212827613,-10000.01,0.0001962,2]
[388494481,1759212862362,-3603.46234571,0.00019424,2]
[388494482,1759212862391,-381.28070971,0.00019546,2]
[388494483,1759212862419,-800.0,0.00019555,2]
[388494484,1759212862494,-430.52388916,0.00019607,2]
[388494485,1759212862532,-369.47611084,0.00019607,2]
[388494486,1759212862565,-800.0,0.0001961,2]
[388494487,1759212862595,-300.0,0.00019619,2]
[388494488,1759212862623,-266.04918776,0.00019619,2]
[388494489,1759212862652,-321.65931154,0.00019619,2]
[388494490,1759212862680,-346.04641236,0.00019619,2]
[388494491,1759212862708,-500.0,0.00019619,2]
[388494492,1759212862741,-500.0,0.00019619,2]
[388494493,1759212862769,-528.86465159,0.00019619,2]
[388494494,1759212862800,-500.0,0.00019619,2]
[388494495,1759212862831,-500.0,0.00019619,2]
[388494496,1759212863036,-135.81865182,0.0001962,2]
[388494497,1759212863059,-10000.01,0.0001962,2]
[388494498,1759212872422,-480.0,0.00019619,2]
[388494499,1759212872462,-500.0,0.00019619,2]
[388494500,1759212872497,-417.21321096,0.00019619,2]
[388494501,1759212872536,-594.56181224,0.00019619,2]
[388494502,1759212872719,-6016.4599536,0.0001962,2]
[388494503,1759212872744,-10000.01,0.0001962,2]
[388494504,1759212887477,-10000.01,0.0001962,2]
[388494505,1759212887604,-3795.31090126,0.0001962,2]
[388494507,1759213134274,-276.95595076,0.00019743,2]
[388494508,1759213137085,-206.28091996,0.00019743,2]
[388494509,1759213139709,-232.61845327,0.00019743,2]
[388494510,1759213143915,-84.14467601,0.00019743,2]
[388494511,1759213143942,-233.85748973,0.00019752,2]
[388494512,1759213149576,-300.0,0.00019752,2]
[388494513,1759213152387,-266.14251027,0.00019752,2]
[388494514,1759213152414,-15.37748973,0.00019764,2]
[388494515,1759213154729,-213.85764713,0.00019764,2]
[388494517,1759213158981,-552.85765408,0.00019764,2]
[388494519,1759213162392,-17.90720906,0.00019764,2]
[388494520,1759213162419,-199.3948353,0.00019796,2]
[388494521,1759213167064,-293.21788925,0.00019796,2]
[388494522,1759213169908,-177.3254538,0.00019796,2]
[388494523,1759213174514,-130.06182165,0.00019796,2]
[388494527,1759213278400,217.89185822,0.00019617,2]
[388494529,1759213500240,5000.0,0.00019667,2]
[388494556,1759213686194,165.250848,0.00018815,2]
[388494562,1759213789138,-168.42354809,0.00019712,2]
[388494615,1759213832601,-780.21799281,0.00019715,2]
[388494617,1759213832611,-168.0,0.00019786,2]
[388494619,1759213832622,-1200.0,0.00019812,2]
[388494622,1759213832631,-300.0,0.00019812,2]
[388494626,1759213832642,-300.0,0.00019812,2]
[388494629,1759213832651,-300.0,0.00019812,2]
[388494630,1759213832661,-300.0,0.00019812,2]
[388494632,1759213832671,-300.0,0.00019813,2]
[388494634,1759213832680,-1200.0,0.00019813,2]
[388494636,1759213832689,-497.11,0.00019813,2]
[388494638,1759213832698,-483.16675203,0.00019813,2]
[388494640,1759213832707,-480.0,0.00019813,2]
[388494642,1759213832717,-480.0,0.00019813,2]
[388494644,1759213832726,-480.0,0.00019813,2]
[388494646,1759213832735,-421.59,0.00019813,2]
[388494648,1759213832744,-480.0,0.00019813,2]
[388494650,1759213832754,-370.73380673,0.00019813,2]
[388494652,1759213832763,-480.0,0.00019813,2]
[388494654,1759213832772,-179.69,0.00019813,2]
[388494656,1759213832782,-588.38,0.00019813,2]
[388494658,1759213832791,-480.0,0.00019813,2]
[388494660,1759213832800,-480.0,0.00019813,2]
[388494662,1759213832810,-613.82673432,0.00019813,2]
[388494664,1759213832820,-480.0,0.00019813,2]
[388494666,1759213832831,-480.0,0.00019813,2]
[388494667,1759213832841,-480.0,0.00019813,2]
[388494669,1759213832851,-10440.30111326,0.00019814,2]
[388494671,1759213832861,-232.61845327,0.00019814,2]
[388494673,1759213832870,-247.91944941,0.00019814,2]
[388494675,1759213832879,-204.60032971,0.00019814,2]
[388494677,1759213832888,-500.0,0.00019814,2]
[388494679,1759213832898,-480.0,0.00019814,2]
[388494681,1759213832907,-480.0,0.00019814,2]
[388494683,1759213832917,-480.0,0.00019814,2]
[388494685,1759213832926,-2574.13,0.00019814,2]
[388494687,1759213832935,-2271.68,0.00019814,2]
[388494689,1759213832944,-480.0,0.00019814,2]
[388494691,1759213832954,-342.00581719,0.00019814,2]
[388494780,1759213851406,771.0,0.00019,2]
[388494787,1759213990768,1213.0,0.00028767,120]
[388494789,1759214099427,-708.15791471,0.00019713,2]
[388494790,1759214128224,-285.84170348,0.00019811,2]
[388494791,1759214131106,-14.15829652,0.00019811,2]
[388494792,1759214131133,-274.23898715,0.00019811,2]
[388494793,1759214133993,-25.76101285,0.00019811,2]
[388494794,1759214134026,-177.28303639,0.00019811,2]
[388494795,1759214136704,-122.71696361,0.00019811,2]
[388494796,1759214136742,-137.69002915,0.00019811,2]
[388494797,1759214139888,-162.30997085,0.00019811,2]
[388494798,1759214139921,-162.08015912,0.00019811,2]
[388494799,1759214145100,-286.23654563,0.00019811,2]
[388494800,1759214147351,-231.97491175,0.00019811,2]
[388494801,1759214149851,-157.19980469,0.00019811,2]
[388494802,1759214153089,-154.43112863,0.00019811,2]
[388494803,1759214155252,-208.07745018,0.00019811,2]
[388494804,1759214155277,-291.92254982,0.00019812,2]
[388494805,1759214160538,-152.0,0.00019812,2]
[388494806,1759214257515,-277.44516523,0.00019716,2]
[388494807,1759214259789,-160.23361501,0.00019716,2]
[388494808,1759214262468,-341.54319708,0.00019716,2]
[388494809,1759214265710,-267.5510871,0.00019716,2]
[388494810,1759214271067,-200.77356247,0.00019716,2]
[388494811,1759214274111,-300.0,0.00019716,2]
[388494812,1759214278214,-169.7629512,0.00019716,2]
[388494813,1759214280344,-271.5410163,0.00019716,2]
[388494814,1759214281410,1547.54662689,0.00019713,2]
[388494815,1759214282678,-385.83487905,0.00019716,2]
[388494816,1759214286426,-269.96811683,0.00019715,2]
[388494817,1759214288693,-30.03188317,0.00019715,2]
[388494818,1759214288729,-122.85606093,0.00019716,2]
[388494819,1759214291547,-223.55602795,0.00019716,2]
[388494820,1759214296533,-223.55602795,0.00019716,2]
[388494821,1759214299502,-246.23293198,0.00019716,2]
[388494822,1759214302462,-242.87912392,0.00019716,2]
[388494823,1759214305052,827.13884655,0.00019713,2]
[388494824,1759214306478,-256.44397205,0.00019716,2]
[388494825,1759214317176,619.63817538,0.00019711,2]
[388494826,1759214341032,1203.55563247,0.00019711,2]
[388494827,1759214391649,-300.0,0.00019714,2]
[388494828,1759214391681,-161.64669368,0.00019715,2]
[388494829,1759214391711,-500.0,0.00019715,2]
[388494830,1759214391738,-500.0,0.00019715,2]
[388494831,1759214391764,-500.0,0.00019715,2]
[388494832,1759214391790,-500.0,0.00019715,2]
[388494833,1759214391816,-285.73631317,0.00019715,2]
[388494834,1759214391845,-383.84058378,0.00019715,2]
[388494835,1759214391871,-500.0,0.00019715,2]
[388494836,1759214391899,-500.0,0.00019715,2]
[388494837,1759214391927,-500.0,0.00019715,2]
[388494838,1759214391954,-500.0,0.00019715,2]
[388494839,1759214391981,-500.0,0.00019715,2]
[388494840,1759214392008,-500.0,0.00019715,2]
[388494841,1759214392034,-500.0,0.00019715,2]
[388494842,1759214392060,-509.63584069,0.00019715,2]
[388494843,1759214392086,-500.0,0.00019715,2]
[388494844,1759214392112,-500.0,0.00019715,2]
[388494845,1759214392139,-500.0,0.00019715,2]
[388494846,1759214392165,-500.0,0.00019715,2]
[388494847,1759214392190,-500.0,0.00019715,2]
[388494848,1759214392215,-500.0,0.00019715,2]
[388494849,1759214392241,-500.0,0.00019715,2]
[388494850,1759214392266,-500.0,0.00019715,2]
[388494851,1759214400393,-9647.99801249,0.00019716,2]
[388494852,1759214400542,-10000.01,0.00019716,2]
[388494853,1759214400674,-10000.01,0.00019716,2]
[388494854,1759214400798,-10000.01,0.00019716,2]
[388494855,1759214400927,-10000.01,0.00019716,2]
[388494856,1759214401061,-10000.01,0.00019716,2]
[388494857,1759214401219,-10000.01,0.00019716,2]
[388494858,1759214401390,-10000.01,0.00019716,2]
[388494859,1759214401681,300.0,0.00019715,2]
[388494860,1759214401733,-10000.01,0.00019716,2]
[388494861,1759214402233,300.0,0.00019715,2]
[388494862,1759214402347,300.0,0.00019715,2]
[388494863,1759214410010,-1200.0,0.00019715,2]
[388494864,1759214410055,-7600.01,0.00019716,2]
[388494865,1759214411898,-269061.70236929,0.00019716,2]
[388494868,1759214629422,-163.83918621,0.00019324,2]
[388494869,1759214631149,-206.62425766,0.00019324,2]
[388494870,1759214632791,-311.93504482,0.00019324,2]
[388494871,1759214636585,-204.76438321,0.00019324,2]
[388494872,1759214638808,-246.02726314,0.00019324,2]
[388494873,1759214642969,-152.0,0.00019324,2]
[388494874,1759214645656,-201.13366746,0.00019324,2]
[388494875,1759214647536,-592.92057606,0.00019324,2]
[388494876,1759214649764,-446.69168566,0.00019324,2]
[388494877,1759214651478,-185.46340084,0.00019324,2]
[388494878,1759214655354,-265.92257133,0.00019324,2]
[388494879,1759214657228,-155.35510159,0.00019324,2]
[388494884,1759214725728,-250.0,0.00019569,2]
[388494885,1759214725761,-372.36963946,0.000196,2]
[388494886,1759214725794,-542.18340344,0.00019673,2]
[388494887,1759214725832,-1352.60491427,0.00019673,2]
[388494888,1759214725866,-1200.0,0.00019704,2]
[388494889,1759214725900,-224.0,0.00019705,2]
[388494890,1759214725931,-300.0,0.00019705,2]
[388494891,1759214725963,-300.0,0.00019705,2]
[388494892,1759214725996,-300.0,0.00019705,2]
[388494893,1759214726156,-349.99,0.00019706,3]
[388494894,1759214726186,-175.0,0.00019706,3]
[388494895,1759214726215,-525.01,0.00019706,3]
[388494896,1759214726246,-1125.44,0.00019706,3]
[388494897,1759214726276,-562.72,0.00019706,3]
[388494898,1759214726304,-281.36,0.00019706,3]
[388494899,1759214726335,-844.12,0.00019706,3]
[388494900,1759214726568,-204.76438321,0.00019419,2]
[388494901,1759214726577,-182.97561679,0.00019706,2]
[388494902,1759214726595,-2272.73,0.00019706,2]
[388494903,1759214726622,-10000.01,0.00019706,2]
[388494904,1759214726655,-10000.01,0.00019706,2]
[388494905,1759214726672,-10000.01,0.00019706,2]
[388494906,1759214726755,-10000.01,0.00019706,2]
[388494907,1759214726879,-2455.75561679,0.00019706,2]
[388494908,1759214726911,-5088.49876642,0.00019706,2]
[388494913,1759214746904,793.05,0.00019706,3]
[388494918,1759214762927,300.0,0.00019715,2]
[388494919,1759214795104,-290.22086844,0.00019716,2]
[388494920,1759214819123,1485.2934344,0.00018888,2]
[388494921,1759214822961,300.0,0.00019715,2]
[388494922,1759214829177,469.14,0.00019706,3]
[388494923,1759214841472,1159.0,0.00019715,2]
[388494924,1759214849786,472.34,0.00019706,3]
[388494925,1759214862696,530.83372454,0.00019673,2]
[388494926,1759214870403,236.17,0.00019706,3]
[388494927,1759214881031,708.54,0.00019706,3]
[388494928,1759214882635,300.0,0.00019715,2]
[388494929,1759214901883,167.87,0.00019706,3]
[388494930,1759214912499,503.65,0.00019706,3]
[388494931,1759214943350,300.0,0.00019715,2]
[388495222,1759215000155,252.6504076,0.00018843,2]
[388495223,1759215002289,300.0,0.00019715,2]
[388495224,1759215002334,300.0,0.00019715,2]
[388495225,1759215003261,268.0,0.00019715,2]
[388495230,1759215006932,1153.47243346,0.00019715,2]
[388495231,1759215006964,46.52756654,0.00019715,2]
[388495232,1759215021440,1082.08393144,0.00019673,2]
[388495233,1759215022257,480.0,0.00019715,2]
[388495234,1759215024931,1011.81,0.00019706,3]
[388495235,1759215027937,246.92246488,0.00019716,2]
[388495236,1759215030501,480.0,0.00019715,2]
[388495263,1759215032812,-41327.11596273,0.00019716,2]
[388495264,1759215032824,-45680.94018446,0.00019716,2]
[388495279,1759215041113,-505.91,0.00019706,3]
[388495280,1759215041145,-541.06806257,0.00019715,2]
[388495281,1759215041177,-480.0,0.00019715,2]
[388495282,1759215041209,-480.0,0.00019715,2]
[388495283,1759215041240,-533.00145425,0.00019715,2]
[388495284,1759215041543,-1572.7070035,0.00019716,2]
[388495285,1759215041589,-10000.01,0.00019716,2]
[388495291,1759215044723,-110132.89382164,0.00019716,2]
[388495317,1759215061066,-767.89,0.00019706,3]
[388495318,1759215061097,-383.94,0.00019706,3]
[388495319,1759215061129,-480.0,0.00019715,2]
[388495320,1759215061160,-480.0,0.00019715,2]
[388495321,1759215061191,-480.0,0.00019715,2]
[388495322,1759215061296,-4816.35,0.00019716,2]
[388495323,1759215061364,-10000.01,0.00019716,2]
[388495324,1759215099154,275.70701699,0.00019666,2]
[388495332,1759215348205,853.78033748,0.00019615,2]
[388495334,1759215476775,160.0,0.000287,120]
[388495335,1759215477928,160.0,0.000287,120]
[388495336,1759215504929,160.0,0.000287,120]
[388495337,1759215515116,160.0,0.000196,2]
[388495338,1759215515674,160.0,0.000196,2]
[388495339,1759215516832,160.0,0.000196,2]
[388495340,1759215530703,159.59953948,0.000196,2]
[388495341,1759215588449,853.42418518,0.00019614,2]
[388495342,1759215686363,185.63531966,0.00019606,2]
[388495343,1759215722380,8321.35095568,0.00019615,2]
[388495344,1759215722409,10000.01,0.00019615,2]
[388495345,1759215722437,10000.01,0.00019615,2]
[388495346,1759215722463,10000.01,0.00019615,2]
[388495347,1759215722490,10000.01,0.00019615,2]
[388495348,1759215722518,10000.01,0.00019615,2]
[388495349,1759215722545,10000.01,0.00019615,2]
[388495350,1759215722570,10000.01,0.00019615,2]
[388495351,1759215722596,10000.01,0.00019615,2]
[388495352,1759215722623,10000.01,0.00019615,2]
[388495353,1759215747255,-8870.52264553,0.00019615,2]
[388495354,1759215747374,-10000.01,0.00019615,2]
[388495355,1759215747508,-10000.01,0.00019615,2]
[388495356,1759215747657,-10000.01,0.00019615,2]
[388495357,1759215747799,-10000.01,0.00019615,2]
[388495358,1759215747946,-10000.01,0.00019615,2]
[388495359,1759215748091,-10000.01,0.00019615,2]
[388495360,1759215748327,-10000.01,0.00019615,2]
[388495361,1759215748459,-10000.01,0.00019615,2]
[388495362,1759215748663,-10000.01,0.00019615,2]
[388495363,1759215759703,218.46717946,0.00028767,120]
[388495364,1759215762206,-500.0,0.00019614,2]
[388495365,1759215762243,-500.0,0.00019614,2]
[388495366,1759215762277,-389.95953785,0.00019614,2]
[388495367,1759215762312,-500.0,0.00019614,2]
[388495368,1759215762346,-600.01541922,0.00019614,2]
[388495369,1759215762463,-5020.06008586,0.00019615,2]
[388495370,1759215762493,-10000.01,0.00019615,2]
[388495371,1759215762519,-10000.01,0.00019615,2]
[388495372,1759215762687,-10000.01,0.00019615,2]
[388495373,1759215762822,-10000.01,0.00019615,2]
[388495374,1759215762976,-10000.01,0.00019615,2]
[388495375,1759215763149,-10000.01,0.00019615,2]
[388495376,1759215763320,-10000.01,0.00019615,2]
[388495377,1759215763461,-10000.01,0.00019615,2]
[388495378,1759215763604,-10000.01,0.00019615,2]
[388495379,1759215797295,-300.0,0.00019614,2]
[388495380,1759215797339,-9400.01,0.00019615,2]
[388495381,1759215797414,-10000.01,0.00019615,2]
[388495382,1759215797535,-10000.01,0.00019615,2]
[388495383,1759215797676,-10000.01,0.00019615,2]
[388495384,1759215797832,-10000.01,0.00019615,2]
[388495385,1759215797986,-10000.01,0.00019615,2]
[388495386,1759215798107,-10000.01,0.00019615,2]
[388495387,1759215815360,-1612.28368707,0.00019615,2]
[388495388,1759215815386,-6775.44262586,0.00019615,2]
[388495389,1759215824681,839.81675316,0.00019613,2]
[388495390,1759215827450,-800.0,0.00019653,2]
[388495391,1759215835561,800.0,0.00019628,2]
[388495392,1759215835965,800.0,0.00019602,2]
[388495393,1759215875881,593.36,0.00019614,2]
[388495394,1759215888009,6206.65,0.00019614,2]
[388495395,1759215888038,10000.01,0.00019614,2]
[388495396,1759215888068,10000.01,0.00019614,2]
[388495397,1759215888097,10000.01,0.00019614,2]
[388495398,1759215888127,10000.01,0.00019614,2]
[388495399,1759215888155,10000.01,0.00019614,2]
[388495400,1759215888182,10000.01,0.00019614,2]
[388495401,1759215888209,10000.01,0.00019614,2]
[388495402,1759215888236,10000.01,0.00019614,2]
[388495403,1759215888267,10000.01,0.00019614,2]
[388495407,1759215912521,-300.0,0.00019613,2]
[388495408,1759215912552,-300.0,0.00019613,2]
[388495409,1759215912582,-300.0,0.00019613,2]
[388495410,1759215912612,-300.0,0.00019613,2]
[388495411,1759215912644,-1200.0,0.00019613,2]
[388495416,1759215922707,-562.31,0.00019604,3]
[388495418,1759215928302,281.16,0.00019604,3]
[388495420,1759215939402,843.5,0.00019604,3]
[388495421,1759215962525,300.0,0.00019613,2]
[388495422,1759215993743,169.75552271,0.00019613,2]
[388495423,1759215993774,500.0,0.00019613,2]
[388495424,1759215993811,500.0,0.00019613,2]
[388495425,1759215993854,500.0,0.00019613,2]
[388495426,1759215993904,500.0,0.00019613,2]
[388495427,1759215994049,191.2893834,0.00019613,2]
[388495428,1759215995374,367.69352873,0.00019613,2]
[388495429,1759215996276,500.0,0.00019613,2]
[388495430,1759215996319,171.59989496,0.00019613,2]
[388495431,1759215996358,500.0,0.00019613,2]
[388495432,1759215996394,500.0,0.00019613,2]
[388495433,1759215996426,500.0,0.00019613,2]
[388495434,1759215996457,500.0,0.00019613,2]
[388495435,1759215996490,500.0,0.00019613,2]
[388495436,1759215996521,500.0,0.00019613,2]
[388495437,1759215996552,500.0,0.00019613,2]
[388495438,1759215996582,270.72672487,0.00019613,2]
[388495439,1759215996611,279.66494533,0.00019613,2]
[388495440,1759215996635,26.76059022,0.00019613,2]
[388495441,1759215996664,492.27838102,0.00019613,2]
[388495442,1759215996699,597.30880571,0.00019613,2]
[388495443,1759215996733,500.0,0.00019613,2]
[388495444,1759215996773,426.54593025,0.00019613,2]
[388495445,1759215996814,500.0,0.00019613,2]
[388495446,1759215996848,500.0,0.00019613,2]
[388495447,1759216006656,262.890705,0.00018704,2]
[388495448,1759216013689,505.99178633,0.00019613,2]
[388495449,1759216022505,300.0,0.00019613,2]
[388495450,1759216041223,1200.0,0.00019613,2]
[388495451,1759216046372,3002.50450661,0.00019514,2]
[388495452,1759216072712,960.89920398,0.00019514,2]
[388495453,1759216077877,151.21272606,0.00019416,2]
[388495455,1759216089061,480.0,0.00019613,2]
[388495457,1759216098044,93.61736482,0.00019613,2]
[388495458,1759216098069,386.38263518,0.00019613,2]
[388495459,1759216101525,655.64,0.00019613,2]
[388495461,1759216111765,480.0,0.00019613,2]
[388495462,1759216122857,377.90747886,0.00019551,2]
[388495464,1759216143085,300.0,0.00019613,2]
[388495465,1759216145984,480.0,0.00019613,2]
[388495466,1759216153105,480.0,0.00019613,2]
[388495468,1759216165308,624.2,0.00019613,2]
[388495469,1759216177622,480.0,0.00019613,2]
[388495470,1759216177661,480.0,0.00019613,2]
[388495472,1759216200708,480.0,0.00019613,2]
[388495473,1759216201322,300.0,0.00019613,2]
[388495474,1759216202160,300.0,0.00019613,2]
[388495475,1759216202231,300.0,0.00019613,2]
[388495476,1759216202687,300.0,0.00019613,2]
[388495477,1759216206348,480.0,0.00019613,2]
[388495478,1759216206415,1200.0,0.00019613,2]
[388495480,1759216213729,489.11,0.00019613,2]
[388495501,1759216225807,1362.98,0.00019604,3]
[388495502,1759216226910,43.78988596,0.00019613,2]
[388495503,1759216226939,436.21011404,0.00019613,2]
[388495504,1759216227037,475.68,0.00019613,2]
[388495607,1759216236477,681.49,0.00019604,3]
[388495611,1759216237848,-556.96874221,0.00019614,2]
[388495612,1759216237860,-3368.60463169,0.00019614,2]
[388495613,1759216237871,-626.41221792,0.00019614,2]
[388495614,1759216238203,480.0,0.00019613,2]
[388495627,1759216241475,-0.01522854,0.00019614,2]
[388495638,1759216243086,-22577.47615908,0.00019614,2]
[388495640,1759216247119,340.75,0.00019604,3]
[388495643,1759216247298,480.0,0.00019613,2]
[388495644,1759216247521,513.89,0.00019613,2]
[388495645,1759216249058,-3716.60988596,0.00019614,2]
[388495646,1759216249094,-10000.01,0.00019614,2]
[388495647,1759216249117,-10000.01,0.00019614,2]
[388495648,1759216249182,-10000.01,0.00019614,2]
[388495649,1759216249344,-10000.01,0.00019614,2]
[388495650,1759216249523,-10000.01,0.00019614,2]
[388495651,1759216249696,-10000.01,0.00019614,2]
[388495652,1759216250482,480.0,0.00019613,2]
[388495653,1759216255719,-9520.01,0.00019614,2]
[388495654,1759216255835,-10000.01,0.00019614,2]
[388495655,1759216255998,-10000.01,0.00019614,2]
[388495656,1759216271368,-962.81902368,0.00019417,2]
[388495657,1759216271403,-170.37,0.00019604,3]
[388495658,1759216271438,-511.14,0.00019604,3]
[388495659,1759216271474,-300.0,0.00019613,2]
[388495660,1759216271509,-480.0,0.00019613,2]
[388495661,1759216271620,-5151.35195264,0.00019614,2]
[388495662,1759216278049,-816.22,0.00019613,2]
[388495663,1759216278094,-8367.57,0.00019614,2]
[388495664,1759216278236,-10000.01,0.00019614,2]
[388495665,1759216278588,-10000.01,0.00019614,2]
[388495666,1759216278755,-10000.01,0.00019614,2]
[388495667,1759216279064,-10000.01,0.00019614,2]
[388495668,1759216315444,-314.90406315,0.00019613,2]
[388495669,1759216315476,-500.0,0.00019613,2]
[388495670,1759216315508,-500.0,0.00019613,2]
[388495671,1759216315538,-500.0,0.00019613,2]
[388495672,1759216315569,-500.0,0.00019613,2]
[388495673,1759216315599,-307.06957662,0.00019613,2]
[388495674,1759216315629,-500.0,0.00019613,2]
[388495675,1759216315661,-500.0,0.00019613,2]
[388495676,1759216315695,-500.0,0.00019613,2]